fUST/lending_fUST_20250302
["ID","MTS","AMOUNT","RATE_DAILY","PERIOD"]
[355081695,1740887475130,-500.0,0.0002516,2]
[355081697,1740887475141,-998.88,0.0002516,2]
[355081699,1740887475151,-500.0,0.0002516,2]
[355081701,1740887475162,-500.0,0.0002516,2]
[355081703,1740887475177,-500.0,0.0002516,2]
[355081706,1740887475187,-500.0,0.0002516,2]
[355081708,1740887475198,-500.0,0.0002516,2]
[355081709,1740887475209,-500.0,0.0002516,2]
[355081712,1740887475220,-1216.98,0.0002516,2]
[355081714,1740887475230,-658.58,0.0002516,2]
[355081716,1740887475241,-415.98630819,0.0002516,2]
[355081718,1740887475252,-1583.32,0.0002516,2]
[355081720,1740887475262,-556.869405,0.0002516,2]
[355081722,1740887475273,-500.0,0.0002516,2]
[355081724,1740887475284,-500.0,0.0002516,2]
[355081726,1740887475293,-500.0,0.0002516,2]
[355081728,1740887475304,-500.0,0.0002516,2]
[355081730,1740887475315,-633.86,0.0002516,2]
[355081732,1740887475326,-500.0,0.0002516,2]
[355081734,1740887475336,-500.0,0.0002516,2]
[355081736,1740887475346,-500.0,0.0002516,2]
[355081738,1740887475356,-500.0,0.0002516,2]
[355081740,1740887475366,-500.0,0.0002516,2]
[355081742,1740887475376,-500.0,0.0002516,2]
[355081744,1740887475386,-500.0,0.0002516,2]
[355081746,1740887475395,-500.0,0.0002516,2]
[355081748,1740887475406,-500.0,0.0002516,2]
[355081750,1740887475415,-500.0,0.0002516,2]
[355081753,1740887475426,-531.14016018,0.0002516,2]
[355081755,1740887475437,-500.0,0.0002516,2]
[355081757,1740887475447,-500.0,0.0002516,2]
[355081759,1740887475458,-500.0,0.0002516,2]
[355081761,1740887475469,-903.21,0.0002516,2]
[355081763,1740887475479,-500.0,0.0002516,2]
[355081765,1740887475489,-500.0,0.00025172,2]
[355081767,1740887475500,-500.0,0.00025172,2]
[355081769,1740887475510,-500.0,0.00025172,2]
[355081771,1740887475521,-500.0,0.00025172,2]
[355081773,1740887475530,-503.28496516,0.00025172,2]
[355081776,1740887475541,-500.0,0.00025173,2]
[355081778,1740887475550,-500.0,0.00025173,2]
[355081780,1740887475560,-2000.0,0.000252,2]
[355081782,1740887475572,-576.55,0.00025335,2]
[355081784,1740887475583,-695.94,0.00025337,2]
[355081786,1740887475597,-338.19153942,0.00025337,2]
[355081788,1740887475608,-500.0,0.00025337,2]
[355081791,1740887475619,-638.24,0.00025337,2]
[355081793,1740887475630,-500.0,0.00025337,2]
[355081795,1740887475640,-500.0,0.00025337,2]
[355081797,1740887475650,-500.0,0.00025337,2]
[355081799,1740887475662,-245.59222798,0.00025337,2]
[355081801,1740887475674,-512.29,0.00025337,2]
[355081803,1740887475686,-500.0,0.00025337,2]
[355081805,1740887475696,-500.0,0.00025337,2]
[355081807,1740887475707,-500.0,0.00025337,2]
[355081809,1740887475719,-500.0,0.00025337,2]
[355081811,1740887475730,-500.0,0.00025337,2]
[355081814,1740887475741,-500.0,0.00025337,2]
[355081816,1740887475752,-251.59277486,0.00025337,2]
[355081818,1740887475763,-517.75,0.00025337,2]
[355081840,1740887475958,-500.0,0.00025337,2]
[355081842,1740887475986,-501.50324051,0.00025337,2]
[355081845,1740887475997,-200.0,0.00025337,2]
[355081847,1740887476009,-500.0,0.00025337,2]
[355081849,1740887476019,-500.0,0.00025337,2]
[355081851,1740887476030,-500.0,0.00025337,2]
[355081853,1740887476042,-500.0,0.00025337,2]
[355081855,1740887476053,-500.0,0.00025337,2]
[355081857,1740887476063,-500.0,0.00025337,2]
[355081859,1740887476073,-500.0,0.00025337,2]
[355081861,1740887476084,-555.95,0.00025337,2]
[355081863,1740887476094,-500.0,0.00025337,2]
[355081865,1740887476105,-500.0,0.00025337,2]
[355081868,1740887476115,-500.0,0.00025337,2]
[355081870,1740887476126,-502.73606524,0.00025337,2]
[355081872,1740887476136,-604.17,0.00025337,2]
[355081874,1740887476146,-500.0,0.00025337,2]
[355081876,1740887476156,-500.0,0.00025337,2]
[355081878,1740887476167,-500.0,0.00025337,2]
[355081880,1740887476179,-500.0,0.00025337,2]
[355081882,1740887476189,-500.0,0.00025337,2]
[355081884,1740887476200,-535.38,0.00025337,2]
[355081886,1740887476211,-644.85,0.00025337,2]
[355081889,1740887476222,-500.0,0.00025337,2]
[355081891,1740887476233,-500.0,0.00025337,2]
[355081893,1740887476243,-1109.68,0.00025337,2]
[355081895,1740887476253,-500.0,0.00025337,2]
[355081897,1740887476263,-500.0,0.00025337,2]
[355081899,1740887476273,-500.0,0.00025337,2]
[355081901,1740887476285,-500.0,0.00025337,2]
[355081903,1740887476295,-500.0,0.00025339,2]
[355081905,1740887476304,-500.0,0.00025339,2]
[355081907,1740887476315,-500.0,0.00025339,2]
[355081909,1740887476325,-3938.98,0.00025339,2]
[355081912,1740887476336,-1897.21,0.00025339,2]
[355081914,1740887476347,-1000.0,0.00025339,5]
[355081916,1740887476358,-500.0,0.00025339,2]
[355081918,1740887476370,-814.94,0.00025339,2]
[355081920,1740887476379,-500.0,0.00025339,2]
[355081922,1740887476389,-500.0,0.00025339,2]
[355081924,1740887476399,-582.56,0.00025339,2]
[355081926,1740887476410,-501.32234021,0.0002534,2]
[355081928,1740887476419,-500.0,0.0002534,2]
[355081930,1740887476429,-500.0,0.0002534,2]
[355081932,1740887476439,-606.5,0.0002534,2]
[355081934,1740887476448,-1398.67,0.0002534,2]
[355081936,1740887476457,-610.78,0.0002534,2]
[355081939,1740887476468,-500.0,0.0002534,2]
[355081941,1740887476483,-500.0,0.0002534,2]
[355081943,1740887476495,-500.0,0.0002534,2]
[355081945,1740887476505,-500.0,0.0002534,2]
[355081947,1740887476516,-500.0,0.0002534,2]
[355081949,1740887476526,-722.78,0.0002534,2]
[355081951,1740887476536,-500.0,0.0002534,2]
[355081953,1740887476547,-500.0,0.0002534,2]
[355081955,1740887476556,-1444.05,0.0002534,2]
[355081957,1740887476567,-500.0,0.0002534,2]
[355081959,1740887476577,-500.0,0.0002534,2]
[355081961,1740887476587,-500.0,0.0002534,2]
[355081964,1740887476599,-519.62201483,0.0002534,2]
[355081966,1740887476613,-1058.22,0.0002534,2]
[355081968,1740887476624,-500.0,0.0002534,2]
[355081970,1740887476635,-1004.44,0.0002534,2]
[355081972,1740887476645,-500.0,0.0002534,2]
[355081974,1740887476655,-500.0,0.0002534,2]
[355081976,1740887476666,-500.0,0.0002534,2]
[355081978,1740887476681,-699.97,0.0002534,2]
[355081980,1740887476691,-2209.6,0.0002534,2]
[355081982,1740887476701,-500.0,0.0002534,2]
[355081984,1740887476711,-500.0,0.0002534,2]
[355081986,1740887476731,-6855.05,0.0002534,2]
[355081988,1740887476748,-500.0,0.0002534,2]
[355081990,1740887476759,-933.72,0.0002534,2]
[355081993,1740887476769,-500.0,0.0002534,2]
[355081995,1740887476779,-456.99039342,0.0002534,2]
[355081997,1740887476788,-500.0,0.0002534,2]
[355081999,1740887476799,-612.38,0.0002534,2]
[355082001,1740887476809,-785.13,0.0002534,2]
[355082003,1740887476818,-829.6,0.0002534,2]
[355082005,1740887476828,-966.52,0.0002534,2]
[355082007,1740887476839,-895.37,0.0002534,2]
[355082009,1740887476849,-500.0,0.0002534,2]
[355082011,1740887476859,-500.0,0.0002534,2]
[355082013,1740887476869,-500.0,0.0002534,2]
[355082015,1740887476879,-6949.16,0.0002534,2]
[355082017,1740887476889,-500.0,0.0002534,2]
[355082019,1740887476899,-500.0,0.0002534,2]
[355082021,1740887476909,-500.0,0.0002534,2]
[355082023,1740887476919,-863.82,0.0002534,2]
[355082025,1740887476930,-4270.14,0.0002534,2]
[355082027,1740887476940,-520.27581045,0.0002534,2]
[355082029,1740887476950,-1135.48,0.0002534,2]
[355082031,1740887476960,-637.67,0.0002534,2]
[355082033,1740887476970,-500.0,0.0002534,2]
[355082035,1740887476980,-5348.24,0.0002534,2]
[355082037,1740887476990,-3293.1,0.0002534,2]
[355082038,1740887477001,-4549.77,0.0002534,2]
[355082039,1740887477011,-769.42,0.0002534,2]
[355082040,1740887477022,-500.0,0.0002534,2]
[355082041,1740887477032,-2567.41,0.0002534,2]
[355082042,1740887477042,-1086.26,0.0002534,2]
[355082043,1740887477052,-500.0,0.0002534,2]
[355082044,1740887477062,-500.0,0.0002534,2]
[355082045,1740887477072,-604.84,0.0002534,2]
[355082046,1740887477082,-7043.4,0.0002534,2]
[355082047,1740887477092,-786.15,0.0002534,2]
[355082048,1740887477102,-500.0,0.0002534,2]
[355082049,1740887477113,-500.0,0.0002534,2]
[355082051,1740887477123,-500.0,0.0002534,2]
[355082053,1740887477135,-500.0,0.0002534,2]
[355082055,1740887477146,-1576.77,0.0002534,2]
[355082057,1740887477156,-500.0,0.0002534,2]
[355082059,1740887477166,-500.0,0.0002534,2]
[355082061,1740887477176,-2514.1,0.0002534,2]
[355082063,1740887477186,-2961.51,0.0002534,2]
[355082065,1740887477196,-5947.3,0.0002534,2]
[355082067,1740887477206,-500.0,0.0002534,2]
[355082069,1740887477217,-500.0,0.0002534,2]
[355082071,1740887477227,-500.0,0.0002534,2]
[355082073,1740887477238,-1198.18,0.0002534,2]
[355082075,1740887477248,-1870.92,0.0002534,2]
[355082078,1740887477258,-1004.96,0.0002534,2]
[355082080,1740887477268,-752.9,0.0002534,2]
[355082082,1740887477279,-500.0,0.0002534,2]
[355082084,1740887477289,-500.0,0.0002534,2]
[355082086,1740887477299,-90588.84,0.00025341,2]
[355082088,1740887477309,-1608.93,0.00025341,2]
[355082090,1740887477319,-917.51,0.00025341,2]
[355082092,1740887477331,-7853.56,0.00025341,2]
[355082094,1740887477342,-2071.45,0.00025341,2]
[355082096,1740887477352,-500.0,0.00025341,2]
[355082098,1740887477363,-500.0,0.00025341,2]
[355082100,1740887477373,-2786.42,0.00025341,2]
[355082102,1740887477383,-584.33,0.00025341,2]
[355082104,1740887477393,-25446.5,0.00025341,2]
[355082106,1740887477403,-726.66,0.00025341,2]
[355082109,1740887477413,-894.01929483,0.0002537,2]
[355082111,1740887477424,-2000.0,0.000254,2]
[355082113,1740887477435,-420.0,0.00025403,2]
[355082115,1740887477445,-500.0,0.00025433,2]
[355082117,1740887477455,-500.0,0.00025433,2]
[355082119,1740887477464,-500.0,0.00025433,2]
[355082121,1740887477474,-500.0,0.00025433,2]
[355082123,1740887477485,-500.0,0.00025433,2]
[355082125,1740887477494,-500.0,0.00025433,2]
[355082127,1740887477504,-500.0,0.00025433,2]
[355082129,1740887477513,-500.0,0.00025433,2]
[355082131,1740887477523,-500.0,0.00025433,2]
[355082133,1740887477533,-500.0,0.00025433,2]
[355082135,1740887477543,-700.75,0.00025433,2]
[355082137,1740887477553,-500.0,0.00025433,2]
[355082139,1740887477563,-280.13801384,0.00025433,2]
[355082141,1740887477572,-500.0,0.00025433,2]
[355082143,1740887477582,-500.0,0.00025433,2]
[355082145,1740887477596,-509.21,0.00025433,2]
[355082147,1740887477605,-500.0,0.00025433,2]
[355082149,1740887477615,-500.0,0.00025433,2]
[355082151,1740887477625,-500.0,0.00025433,2]
[355082153,1740887477636,-500.0,0.00025433,2]
[355082155,1740887477646,-575.15173286,0.00025433,2]
[355082157,1740887477655,-407.13496903,0.00025433,2]
[355082159,1740887477665,-500.0,0.00025433,2]
[355082161,1740887477678,-500.0,0.00025433,2]
[355082163,1740887477688,-500.0,0.00025433,2]
[355082165,1740887477698,-500.0,0.00025433,2]
[355082167,1740887477708,-500.0,0.00025433,2]
[355082169,1740887477718,-500.0,0.00025433,2]
[355082171,1740887477728,-511.51,0.00025433,2]
[355082173,1740887477737,-500.0,0.00025433,2]
[355082175,1740887477747,-604.31897389,0.00025433,2]
[355082177,1740887477757,-500.0,0.00025433,2]
[355082179,1740887477766,-545.25,0.00025433,2]
[355082181,1740887477776,-984.68,0.00025433,2]
[355082183,1740887477786,-500.0,0.00025433,2]
[355082185,1740887477795,-500.0,0.00025433,2]
[355082187,1740887477805,-500.0,0.00025433,2]
[355082189,1740887477815,-500.0,0.00025433,2]
[355082191,1740887477825,-500.0,0.00025433,2]
[355082193,1740887477835,-532.97,0.00025433,2]
[355082195,1740887477846,-500.0,0.00025433,2]
[355082197,1740887477855,-512.9872952,0.00025433,2]
[355082199,1740887477865,-500.0,0.00025433,2]
[355082201,1740887477875,-500.0,0.00025433,2]
[355082203,1740887477884,-500.0,0.00025433,2]
[355082205,1740887477895,-500.0,0.00025433,2]
[355082207,1740887477905,-500.0,0.00025433,2]
[355082209,1740887477915,-787.96,0.00025433,2]
[355082211,1740887477924,-500.0,0.00025433,2]
[355082213,1740887477934,-500.0,0.00025433,2]
[355082215,1740887477944,-500.0,0.00025433,2]
[355082217,1740887477954,-879.86,0.00025433,2]
[355082219,1740887477964,-511.59,0.00025433,2]
[355082221,1740887477974,-500.0,0.00025433,2]
[355082223,1740887477984,-1331.9,0.00025433,2]
[355082225,1740887477993,-500.0,0.00025433,2]
[355082227,1740887478003,-500.0,0.00025433,2]
[355082229,1740887478013,-500.0,0.00025433,2]
[355082231,1740887478023,-500.0,0.00025433,2]
[355082233,1740887478034,-500.0,0.00025433,2]
[355082235,1740887478044,-500.0,0.00025433,2]
[355082237,1740887478055,-2389.55,0.00025433,2]
[355082240,1740887478066,-1197.27,0.00025433,2]
[355082241,1740887478076,-500.0,0.00025433,2]
[355082243,1740887478086,-1199.41,0.00025433,2]
[355082246,1740887478095,-800.95,0.00025434,2]
[355082248,1740887478106,-500.0,0.00025434,2]
[355082250,1740887478116,-595.63,0.00025434,2]
[355082252,1740887478126,-500.0,0.00025434,2]
[355082254,1740887478136,-500.0,0.00025434,2]
[355082256,1740887478146,-619.14,0.00025434,2]
[355082258,1740887478156,-500.0,0.00025434,2]
[355082260,1740887478165,-696.73,0.00025434,2]
[355082262,1740887478176,-500.0,0.00025434,2]
[355082264,1740887478186,-500.0,0.00025434,2]
[355082266,1740887478196,-500.0,0.00025434,2]
[355082268,1740887478206,-827.74,0.00025434,2]
[355082270,1740887478216,-556.71,0.00025434,2]
[355082272,1740887478225,-645.31,0.00025434,2]
[355082274,1740887478235,-500.0,0.00025434,2]
[355082276,1740887478245,-500.0,0.00025434,2]
[355082278,1740887478255,-500.0,0.00025434,2]
[355082280,1740887478265,-500.0,0.00025434,2]
[355082282,1740887478274,-500.0,0.00025434,2]
[355082284,1740887478284,-546.83,0.00025434,2]
[355082286,1740887478293,-500.0,0.00025434,2]
[355082288,1740887478302,-500.0,0.00025434,2]
[355082290,1740887478312,-1197.2,0.00025434,2]
[355082292,1740887478322,-824.78,0.00025434,2]
[355082294,1740887478332,-510.26,0.00025434,2]
[355082296,1740887478342,-500.0,0.00025434,2]
[355082298,1740887478351,-671.0,0.00025434,2]
[355082300,1740887478361,-500.0,0.00025434,2]
[355082302,1740887478370,-1080.75,0.00025434,2]
[355082304,1740887478381,-500.0,0.00025434,2]
[355082306,1740887478391,-500.0,0.00025434,2]
[355082308,1740887478400,-500.0,0.00025434,2]
[355082320,1740887478500,-500.0,0.00025434,2]
[355082322,1740887478511,-998.88,0.00025434,2]
[355082324,1740887478521,-500.0,0.00025434,2]
[355082326,1740887478531,-455.16241271,0.00025434,2]
[355082328,1740887478540,-500.0,0.00025434,2]
[355082330,1740887478550,-501.60123864,0.00025434,2]
[355082332,1740887478560,-500.0,0.00025434,2]
[355082334,1740887478570,-500.0,0.00025434,2]
[355082336,1740887478579,-1216.98,0.00025434,2]
[355082338,1740887478589,-658.58,0.00025434,2]
[355082340,1740887478603,-1583.32,0.00025434,2]
[355082342,1740887478613,-500.0,0.00025434,2]
[355082344,1740887478623,-500.0,0.00025434,2]
[355082346,1740887478632,-500.0,0.00025434,2]
[355082348,1740887478643,-500.0,0.00025434,2]
[355082350,1740887478653,-633.86,0.00025434,2]
[355082352,1740887478663,-500.0,0.00025434,2]
[355082354,1740887478674,-500.0,0.00025434,2]
[355082356,1740887478685,-500.0,0.00025434,2]
[355082358,1740887478695,-500.0,0.00025434,2]
[355082360,1740887478705,-500.0,0.00025434,2]
[355082362,1740887478715,-500.0,0.00025434,2]
[355082364,1740887478726,-500.0,0.00025434,2]
[355082366,1740887478736,-500.0,0.00025434,2]
[355082368,1740887478747,-500.0,0.00025434,2]
[355082370,1740887478757,-500.0,0.00025434,2]
[355082372,1740887478767,-500.0,0.00025434,2]
[355082374,1740887478777,-500.0,0.00025434,2]
[355082376,1740887478787,-500.0,0.00025434,2]
[355082378,1740887478796,-903.21,0.00025434,2]
[355082380,1740887478807,-500.0,0.00025434,2]
[355082382,1740887478816,-500.0,0.00025446,2]
[355082383,1740887478826,-500.0,0.00025446,2]
[355082384,1740887478836,-512.01765553,0.00025446,2]
[355082385,1740887478846,-630.41906617,0.00025446,2]
[355082386,1740887478855,-500.0,0.00025447,2]
[355082387,1740887478866,-500.0,0.00025447,2]
[355082388,1740887478881,-3201.2741002,0.00025474,4]
[355082389,1740887478891,-160.0,0.00025493,2]
[355082390,1740887478902,-2000.0,0.000255,2]
[355082391,1740887478911,-576.55,0.00025609,2]
[355082392,1740887478920,-695.94,0.00025611,2]
[355082393,1740887478930,-500.0,0.00025611,2]
[355082395,1740887478940,-638.24,0.00025611,2]
[355082397,1740887478949,-500.0,0.00025611,2]
[355082399,1740887478959,-500.0,0.00025611,2]
[355082401,1740887478969,-512.29,0.00025611,2]
[355082402,1740887478979,-500.0,0.00025611,2]
[355082404,1740887478988,-500.0,0.00025611,2]
[355082406,1740887478998,-500.0,0.00025611,2]
[355082408,1740887479008,-500.0,0.00025611,2]
[355082411,1740887479019,-500.0,0.00025611,2]
[355082413,1740887479028,-500.0,0.00025611,2]
[355082415,1740887479038,-517.75,0.00025611,2]
[355082417,1740887479048,-500.0,0.00025611,2]
[355082418,1740887479058,-200.0,0.00025611,2]
[355082420,1740887479069,-500.0,0.00025611,2]
[355082423,1740887479079,-500.0,0.00025611,2]
[355082424,1740887479088,-416.6462864,0.00025611,2]
[355082426,1740887479098,-500.0,0.00025611,2]
[355082428,1740887479108,-500.0,0.00025611,2]
[355082430,1740887479119,-594.53805797,0.00025611,2]
[355082432,1740887479128,-555.95,0.00025611,2]
[355082434,1740887479140,-500.0,0.00025611,2]
[355082436,1740887479150,-500.0,0.00025611,2]
[355082438,1740887479160,-574.06167575,0.00025611,2]
[355082440,1740887479171,-604.17,0.00025611,2]
[355082442,1740887479181,-500.0,0.00025611,2]
[355082444,1740887479192,-500.0,0.00025611,2]
[355082446,1740887479202,-500.0,0.00025611,2]
[355082448,1740887479211,-500.0,0.00025611,2]
[355082450,1740887479221,-535.38,0.00025611,2]
[355082452,1740887479230,-644.85,0.00025611,2]
[355082454,1740887479241,-500.0,0.00025611,2]
[355082456,1740887479251,-1109.68,0.00025611,2]
[355082458,1740887479261,-500.0,0.00025611,2]
[355082460,1740887479272,-500.0,0.00025611,2]
[355082462,1740887479282,-500.0,0.00025611,2]
[355082464,1740887479291,-500.0,0.00025613,2]
[355082466,1740887479300,-297.27542049,0.00025613,2]
[355082468,1740887479310,-500.0,0.00025613,2]
[355082470,1740887479319,-3938.98,0.00025613,2]
[355082472,1740887479329,-1897.21,0.00025613,2]
[355082474,1740887479339,-694.33217766,0.00025613,5]
[355082476,1740887479348,-500.0,0.00025613,2]
[355082478,1740887479358,-814.94,0.00025613,2]
[355082480,1740887479368,-500.0,0.00025613,2]
[355082482,1740887479380,-442.99392917,0.00025613,2]
[355082484,1740887479389,-582.56,0.00025613,2]
[355082486,1740887479399,-500.0,0.00025614,2]
[355082488,1740887479409,-500.0,0.00025614,2]
[355082490,1740887479418,-606.5,0.00025614,2]
[355082492,1740887479428,-1398.67,0.00025614,2]
[355082494,1740887479437,-610.78,0.00025614,2]
[355082496,1740887479446,-500.0,0.00025614,2]
[355082498,1740887479456,-500.0,0.00025614,2]
[355082500,1740887479465,-500.0,0.00025614,2]
[355082502,1740887479475,-500.0,0.00025614,2]
[355082504,1740887479485,-500.0,0.00025614,2]
[355082506,1740887479494,-722.78,0.00025614,2]
[355082508,1740887479505,-500.0,0.00025614,2]
[355082510,1740887479515,-500.0,0.00025614,2]
[355082512,1740887479525,-1444.05,0.00025614,2]
[355082514,1740887479535,-500.0,0.00025614,2]
[355082516,1740887479544,-500.0,0.00025614,2]
[355082518,1740887479554,-500.0,0.00025614,2]
[355082520,1740887479563,-1058.22,0.00025614,2]
[355082522,1740887479574,-500.0,0.00025614,2]
[355082524,1740887479584,-1004.44,0.00025614,2]
[355082526,1740887479597,-500.0,0.00025614,2]
[355082528,1740887479608,-500.0,0.00025614,2]
[355082530,1740887479618,-311.47522981,0.00025614,2]
[355082531,1740887479628,-699.97,0.00025614,2]
[355082534,1740887479639,-2209.6,0.00025614,2]
[355082536,1740887479657,-500.0,0.00025614,2]
[355082537,1740887479667,-500.0,0.00025614,2]
[355082539,1740887479677,-6855.05,0.00025614,2]
[355082542,1740887479687,-500.0,0.00025614,2]
[355082543,1740887479697,-933.72,0.00025614,2]
[355082546,1740887479707,-233.81,0.00025614,2]
[355082548,1740887479718,-500.0,0.00025614,2]
[355082549,1740887479727,-612.38,0.00025614,2]
[355082551,1740887479737,-785.13,0.00025614,2]
[355082553,1740887479746,-829.6,0.00025614,2]
[355082555,1740887479756,-966.52,0.00025614,2]
[355082556,1740887479766,-895.37,0.00025614,2]
[355082558,1740887479775,-555.85356421,0.00025614,2]
[355082559,1740887479785,-500.0,0.00025614,2]
[355082561,1740887479794,-500.0,0.00025614,2]
[355082562,1740887479804,-6949.16,0.00025614,2]
[355082563,1740887479814,-500.0,0.00025614,2]
[355082565,1740887479824,-500.0,0.00025614,2]
[355082566,1740887479834,-500.0,0.00025614,2]
[355082568,1740887479844,-863.82,0.00025614,2]
[355082569,1740887479853,-4270.14,0.00025614,2]
[355082571,1740887479863,-1135.48,0.00025614,2]
[355082572,1740887479872,-637.67,0.00025614,2]
[355082573,1740887479883,-500.0,0.00025614,2]
[355082575,1740887479893,-5348.24,0.00025614,2]
[355082576,1740887479903,-3293.1,0.00025614,2]
[355082578,1740887479912,-4549.77,0.00025614,2]
[355082579,1740887479922,-769.42,0.00025614,2]
[355082581,1740887479933,-500.0,0.00025614,2]
[355082582,1740887479943,-2567.41,0.00025614,2]
[355082584,1740887479953,-1086.26,0.00025614,2]
[355082585,1740887479963,-500.0,0.00025614,2]
[355082586,1740887479972,-500.0,0.00025614,2]
[355082588,1740887479982,-604.84,0.00025614,2]
[355082589,1740887479991,-7043.4,0.00025614,2]
[355082591,1740887480001,-786.15,0.00025614,2]
[355082593,1740887480011,-500.0,0.00025614,2]
[355082594,1740887480020,-500.0,0.00025614,2]
[355082596,1740887480030,-500.0,0.00025614,2]
[355082597,1740887480039,-500.0,0.00025614,2]
[355082599,1740887480050,-1576.77,0.00025614,2]
[355082600,1740887480059,-500.0,0.00025614,2]
[355082602,1740887480069,-2514.1,0.00025614,2]
[355082604,1740887480080,-2961.51,0.00025614,2]
[355082605,1740887480089,-5947.3,0.00025614,2]
[355082607,1740887480099,-513.13739298,0.00025614,2]
[355082608,1740887480109,-500.0,0.00025614,2]
[355082610,1740887480118,-1198.18,0.00025614,2]
[355082612,1740887480128,-1870.92,0.00025614,2]
[355082613,1740887480138,-1004.96,0.00025614,2]
[355082615,1740887480148,-752.9,0.00025614,2]
[355082616,1740887480159,-500.0,0.00025614,2]
[355082618,1740887480169,-500.0,0.00025614,2]
[355082620,1740887480181,-90588.84,0.00025615,2]
[355082621,1740887480191,-1608.93,0.00025615,2]
[355082623,1740887480201,-917.51,0.00025615,2]
[355082624,1740887480211,-7853.56,0.00025615,2]
[355082626,1740887480221,-2071.45,0.00025615,2]
[355082628,1740887480231,-500.0,0.00025615,2]
[355082629,1740887480241,-500.0,0.00025615,2]
[355082631,1740887480251,-2786.42,0.00025615,2]
[355082632,1740887480260,-584.33,0.00025615,2]
[355082634,1740887480271,-151.0,0.00025615,7]
[355082636,1740887480282,-151.0,0.00025615,7]
[355082637,1740887480292,-151.0,0.00025615,7]
[355082639,1740887480301,-156.375819,0.00025615,7]
[355082640,1740887480312,-183.894362,0.00025615,7]
[355082642,1740887480322,-25446.5,0.00025615,2]
[355082644,1740887480331,-183.894362,0.00025615,7]
[355082645,1740887480341,-151.0,0.00025615,7]
[355082647,1740887480351,-726.66,0.00025615,2]
[355082648,1740887480361,-500.0,0.00025671,2]
[355082650,1740887480371,-500.0,0.00025671,2]
[355082652,1740887480381,-500.0,0.00025671,2]
[355082653,1740887480391,-400.33869974,0.00025671,2]
[355082655,1740887480401,-500.0,0.00025707,2]
[355082656,1740887480410,-500.0,0.00025707,2]
[355082658,1740887480421,-605.9912609,0.00025707,2]
[355082660,1740887480433,-500.0,0.00025707,2]
[355082661,1740887480443,-500.0,0.00025707,2]
[355082663,1740887480453,-500.0,0.00025707,2]
[355082664,1740887480463,-500.0,0.00025707,2]
[355082666,1740887480473,-500.0,0.00025707,2]
[355082667,1740887480482,-500.0,0.00025707,2]
[355082669,1740887480492,-500.0,0.00025707,2]
[355082671,1740887480502,-700.75,0.00025707,2]
[355082672,1740887480513,-500.0,0.00025707,2]
[355082674,1740887480522,-500.0,0.00025707,2]
[355082675,1740887480532,-500.0,0.00025707,2]
[355082677,1740887480542,-509.21,0.00025707,2]